[Event "Hungarian Youth-ch U16 2022"]
[Site "Eger"]
[Date "2022.07.31"]
[Round "9.7"]
[White "Buri, Petra Zsuzsanna"]
[Black "Karacsonyi, Kata"]
[Result "1/2-1/2"]
[ECO "B56"]
[WhiteElo "1784"]
[BlackElo "2147"]
[Annotator "NA RC"]
[PlyCount "91"]
[EventDate "2022.07.21"]
[EventType "tourn"]
[EventCountry "HUN"]
[SourceTitle "playchess.com"]
[Source "ChessBase"]
[SourceQuality "1"]
[TimeControl "40/5400+30:1800+30"]

1. e4 {[%emt 0:06:07]} c5 {[%emt 0:00:38]} 2. Nf3 {[%emt 0:00:20]} d6 {[%emt 0:00:13]} 3. d4 {[%emt 0:00:08]} cxd4 {[%emt 0:00:05]} 4. Nxd4 {[%emt 0:00:07]} Nf6 {[%emt 0:00:09]} 5. Nc3 {[%emt 0:00:10]} Nc6 {[%emt 0:00:53]} 6. f3 {[%emt 0:00:49]} e5 {[%emt 0:00:08]} 7. Nb3 {[%emt 0:00:41]} Be7 {[%emt 0:00:20]} 8. Be3 {[%emt 0:00:21]} Be6 {[%emt 0:01:32]} 9. Qd2 {[%emt 0:01:08]} O-O {[%emt 0:01:59] 9...0-0 is better than 9...d5.} 10. Rd1 {[%emt 0:01:54]} a6 {[%emt 0:04:32]} 11. Bd3 {[%emt 0:02:30]} (11. Nd5 $14) 11... b5 {[%emt 0:16:49]} 12. O-O {[%emt 0:03:15] [#]} b4 $146 {[%emt 0:04:16]} (12... Nb4 $11) ({Predecessor:} 12... Qc7 13. Ne2 Rad8 14. Qc3 b4 15. Qd2 a5 16. Bb5 Na7 17. Qd3 Rb8 18. c4 Nxb5 19. cxb5 {0-1 (45) Cunha,L (2000)-Carvalho,R (2040) Rio de Janeiro 1999}) 13. Nd5 {[%emt 0:08:53]} Nxd5 {[%emt 0:14:03]} 14. exd5 {[%emt 0:00:36]} Bxd5 {[%emt 0:00:08] [#]} 15. Bxh7+ $1 {[%emt 0:00:36]} Kxh7 {[%emt 0:00:08]} 16. Qxd5 {[%emt 0:00:17]} Qc7 {[%emt 0:06:43]} (16... Rc8 $11 {remains equal.}) 17. f4 {[%emt 0:03:46]} Kg8 {[%emt 0:17:50]} 18. f5 {[%emt 0:07:41]} Rfd8 {[%emt 0:07:45]} (18... Rac8 $11 {remains equal.}) 19. Nd2 $16 {[%emt 0:10:40]} Na7 {[%emt 0:09:25]} 20. f6 {[%emt 0:14:08]} Bxf6 {[%emt 0:01:38]} 21. Ne4 {[%emt 0:00:39]} Qc6 {[%emt 0:02:21]} 22. Nxf6+ {[%emt 0:02:12]} gxf6 {[%emt 0:00:26]} 23. Qxc6 {[%emt 0:01:36]} Nxc6 {[%emt 0:00:02]} 24. Rxf6 {[%emt 0:00:14]} Ne7 {[%emt 0:03:08]} 25. Bb6 {[%emt 0:01:20]} Rdc8 {[%emt 0:00:48]} 26. Rd2 {[%emt 0:02:50]} d5 {[%emt 0:04:48]} 27. Rdf2 {[%emt 0:01:35]} Rab8 {[%emt 0:01:18]} 28. Rxf7 {[%emt 0:01:46]} Rxb6 {[%emt 0:00:37]} 29. Rxe7 {[%emt 0:00:08]} e4 {[%emt 0:00:06]} 30. Rf5 {[%emt 0:07:35]} Rd6 {[%emt 0:01:47]} 31. Rff7 {[%emt 0:03:47]} Rg6 {[%emt 0:00:09]} 32. Rc7 {[%emt 0:01:06]} Rxc7 {[%emt 0:01:06]} 33. Rxc7 {[%emt 0:00:06]} Rd6 {[%emt 0:00:28]} 34. c3 {[%emt 0:00:43]} d4 {[%emt 0:00:34]} 35. cxd4 {[%emt 0:00:25]} Rxd4 {[%emt 0:00:00]} 36. Rc2 {[%emt 0:01:49]} a5 {[%emt 0:00:56]} 37. Kf2 {[%emt 0:00:26]} Rd3 {[%emt 0:00:37]} 38. Re2 {[%emt 0:00:24]} b3 {[%emt 0:00:24]} 39. a3 {[%emt 0:00:19]} Rd4 {[%emt 0:00:10]} 40. Ke3 {[%emt 0:00:00]} Rc4 {[%emt 0:00:00]} 41. Rf2 {[%emt 0:05:08]} Kg7 {[%emt 0:04:39]} 42. g4 {[%emt 0:03:33]} Kg6 {[%emt 0:01:22]} 43. h4 {[%emt 0:00:14]} a4 {[%emt 0:03:51]} 44. Rh2 {[%emt 0:03:49]} Kh6 {[%emt 0:04:06]} 45. h5 {[%emt 0:04:06]} Rc6 {[%emt 0:09:39]} 46. Rg2 {[%emt 0:03:32]} 1/2-1/2